Workbook

Sheet INFORME 1
A1: AMERICA MOVIL PERU S.A.C.
A3: INFORME 1: RECONCILIACIÓN DEL ESTADO DE LA SITUACIÓN FINANCIERA ESTATUARIO CON EL DE CONTABILIDAD SEPARADA
A5: Periodo de reporte: Al 31 de Diciembre de 2018
A7: Expresado en Miles de Soles | B7: Código Plan Contable | C7: Código PCR | D7: Estado de Situación Financiera Estatuaria | E7: Ajustes | F7: Estado de Situación Financiera de Contabilidad Separada | G7: Número de nota 1/.
A8: ACTIVO CORRIENTE | D8: =D9+D10+D12+D13+D14+D11+D15 -> 1790103.979 | E8: =E9+E10+E12+E13+E14+E11+E15 -> -835.49147 | F8: =F9+F10+F12+F13+F14+F11+F15 -> 1789268.487
A9: Efectivo y equivalentes de efectivo | B9: 10 | C9: 10 | D9: 61608.38987 | E9: 0 | F9: 61608.38987
A10: Cuentas por cobrar a terceros, neto | B10: 12 | C10: 12 | D10: 597260.9746 | E10: 0.199 | F10: 597261.1736
A11: Otras cuentas por cobrar diversas | B11: 16 | C11: 16 | D11: 86974.65894 | E11: -834.69047 | F11: 86139.96847
A12: Cuentas por cobrar a la principal y vinculadas | B12: 13 | C12: 13 | D12: 373133.1037 | E12: -1 | F12: 373132.1037
A13: Existencias, neto | B13: 20 | C13: 20 | D13: 286475.7632 | E13: 0 | F13: 286475.7632
A14: Activos por contratos | B14: 40 | C14: 40 | D14: 326155.0871 | E14: 0 | F14: 326155.0871
A15: Otros Activos | B15: 18 | C15: 18 | D15: 58496.00123 | E15: 0 | F15: 58496.00123
A16: ACTIVO NO CORRIENTE | D16: =+D17+D18+D59+D66+D67+D114+D115+D116 -> 7465147.021 | E16: =+E17+E18+E59+E66+E67+E114+E115+E116 -> -2989837.367 | F16: =+F17+F18+F59+F66+F67+F114+F115+F116 -> 4475309.654
A17: Inversiones | B17: 30 | C17: 30 | D17: 2809253.06 | E17: -2809253.06 | F17: 0
A18: Activo Fijo Bruto | B18: NOTA1 | C18: 30 | D18: =+D19+D51 -> 5898208.613 | E18: =+E19+E51 -> 9072.641016 | F18: =+F19+F51 -> 5907281.254 | G18: 1
A19: Planta y Equipo de Comunicaciones | B19: NOTA1 | C19: 301 | D19: =+D20+D28+D29+D38+D45 -> 4675698.555 | E19: =+E20+E28+E29+E38+E45 -> -502241.394 | F19: =+F20+F28+F29+F38+F45 -> 4173457.161 | G19: 1
A20: Equipos terminales | B20: NOTA1 | C20: 3011 | D20: =+D21+D22+D23+D24+D25+D26+D27 -> 1495766.718 | E20: =+E21+E22+E23+E24+E25+E26+E27 -> -44763.08112 | F20: =+F21+F22+F23+F24+F25+F26+F27 -> 1451003.637 | G20: 1
A21: Equipos terminales -Teléfonos de Abonados | B21: NOTA1 | C21: 30111 | D21: 84386.25728 | E21: -2567.047301 | F21: 81819.20997 | G21: 1
A22: Equipos terminales -Teléfonos Públicos | B22: NOTA1 | C22: 30112 | D22: 72012.90858 | E22: -2312.569161 | F22: 69700.33942 | G22: 1
A23: Equipos Terminales -Televisión de Paga | B23: NOTA1 | C23: 30113 | D23: 499196.9004 | E23: -15141.44827 | F23: 484055.4522 | G23: 1
A24: Equipos Terminales -Internet Fijo | B24: NOTA1 | C24: 30114 | D24: 812321.598 | E24: -24452.25871 | F24: 787869.3393 | G24: 1
A25: Equipos Terminales -Telefonía Móvil | B25: NOTA1 | C25: 30115 | D25: 27849.05333 | E25: -289.75767 | F25: 27559.29566 | G25: 1
A26: Equipos Terminales -Internet Móvil | B26: NOTA1 | C26: 30116 | D26: 0 | E26: 0 | F26: 0 | G26: 1
A27: Otros Equipos Terminales | B27: NOTA1 | C27: 30117 | D27: 0 | E27: 0 | F27: 0 | G27: 1
A28: Planta y Equipo de Acceso Local | B28: NOTA1 | C28: 3012 | D28: 208419.3671 | E28: 17944.70597 | F28: 226364.0731 | G28: 1
A29: Equipos Centrales y de agregación | B29: NOTA1 | C29: 3013 | D29: =+D30+D31+D32+D33+D34+D35+D36+D37 -> 333801.0334 | E29: =+E30+E31+E32+E33+E34+E35+E36+E37 -> -10245.99633 | F29: =+F30+F31+F32+F33+F34+F35+F36+F37 -> 323555.0371 | G29: 1
A30: Centrales Locales | B30: NOTA1 | C30: 30131 | D30: 0 | E30: 0 | F30: 0 | G30: 1
A31: Centrales de Larga Distancia Nacional | B31: NOTA1 | C31: 30132 | D31: 42261.68493 | E31: -1334.657973 | F31: 40927.02696 | G31: 1
A32: Centrales de Larga Distancia Internacional | B32: NOTA1 | C32: 30133 | D32: 480.7112291 | E32: -15.18124693 | F32: 465.5299822 | G32: 1
A33: Controladores | B33: NOTA1 | C33: 30134 | D33: 79537.69666 | E33: -2443.520026 | F33: 77094.17663 | G33: 1
A34: Gateways | B34: NOTA1 | C34: 30135 | D34: 5386.89348 | E34: -175.0918434 | F34: 5211.801637 | G34: 1
A35: Cabeceras | B35: NOTA1 | C35: 30136 | D35: 29294.77722 | E35: -782.7674705 | F35: 28512.00975 | G35: 1
A36: Transmisión de Datos (Servicio Final) | B36: NOTA1 | C36: 30137 | D36: 176839.2699 | E36: -5494.777768 | F36: 171344.4921 | G36: 1
A37: Otros equipos centrales | B37: NOTA1 | C37: 30138 | D37: 0 | E37: 0 | F37: 0 | G37: 1
A38: Transmisión (Gran capacidad) | B38: NOTA1 | C38: 3014 | D38: =+D39+D40+D41+D42+D43+D44 -> 1393658.002 | E38: =+E39+E40+E41+E42+E43+E44 -> -2060.209606 | F38: =+F39+F40+F41+F42+F43+F44 -> 1391597.792 | G38: 1
A39: Cables de Transmisión (excluidos internacional) | B39: NOTA1 | C39: 30141 | D39: 483083.5917 | E39: 10513.67245 | F39: 493597.2641 | G39: 1
A40: Equipos de Transmisión (excluidos internacional) | B40: NOTA1 | C40: 30142 | D40: 290844.9544 | E40: -8750.085841 | F40: 282094.8685 | G40: 1
A41: Equipos de Transmisión Radio | B41: NOTA1 | C41: 30143 | D41: 420812.3146 | E41: -11318.16374 | F41: 409494.1509 | G41: 1
A42: Equipos de Transmisión por Satélite | B42: NOTA1 | C42: 30144 | D42: 37352.20958 | E42: -1121.721994 | F42: 36230.48759 | G42: 1
A43: Cables y Equipos internacionales (excluyendo satélite) | B43: NOTA1 | C43: 30145 | D43: 2954.733315 | E43: -87.55242469 | F43: 2867.180891 | G43: 1
A44: Otros equipos de transmisión | B44: NOTA1 | C44: 30146 | D44: 158610.1983 | E44: 8703.641935 | F44: 167313.8403 | G44: 1
A45: Otros Activos Fijos Brutos de Comunicaciones | B45: NOTA1 | C45: 3015 | D45: =+D46+D47+D48+D49+D50 -> 1244053.435 | E45: =+E46+E47+E48+E49+E50 -> -463116.8129 | F45: =+F46+F47+F48+F49+F50 -> 780936.6223 | G45: 1
A46: Equipos de Fuerza (Planta Energía Eléctrica) | B46: NOTA1 | C46: 30151 | D46: 106920.3793 | E46: 6357.390884 | F46: 113277.7702 | G46: 1
A47: Sistemas de Gestión de Red | B47: NOTA1 | C47: 30152 | D47: 178627.362 | E47: -4726.644341 | F47: 173900.7177 | G47: 1
A48: Equipos para Interconexión | B48: NOTA1 | C48: 30153 | D48: 0 | E48: 0 | F48: 0 | G48: 1
A49: Equipos para Circuitos Alquilados | B49: NOTA1 | C49: 30154 | D49: 0 | E49: 0 | F49: 0 | G49: 1
A50: Otros | B50: NOTA1 | C50: 30155 | D50: 958505.6939 | E50: -464747.5595 | F50: 493758.1344 | G50: 1
A51: Terreno, Edificios, Planta y Equipos no de Telecomunicaciones | B51: NOTA1 | C51: 302 | D51: =+D52+D53+D54+D55+D56+D57+D58 -> 1222510.057 | E51: =+E52+E53+E54+E55+E56+E57+E58 -> 511314.035 | F51: =+F52+F53+F54+F55+F56+F57+F58 -> 1733824.092 | G51: 1
A52: Terrenos | B52: NOTA1 | C52: 3021 | D52: 48171.97508 | E52: 363790.2395 | F52: 411962.2146 | G52: 1
A53: Edificios | B53: NOTA1 | C53: 3022 | D53: 637204.8617 | E53: 115210.9943 | F53: 752415.856 | G53: 1
A54: Vehículos y Ayudas Mecánicas | B54: NOTA1 | C54: 3023 | D54: 13089.08467 | E54: -27.67085 | F54: 13061.41382 | G54: 1
A55: Equipos Sistemas Informáticos | B55: NOTA1 | C55: 3024 | D55: 22921.67878 | E55: -383.6004157 | F55: 22538.07836 | G55: 1
A56: Edificios en arrendamiento financiero | B56: NOTA1 | C56: 3025 | D56: 264335.7638 | E56: 32806.69808 | F56: 297142.4618 | G56: 1
A57: Otros activos bajo la forma de arrendamiento o leasing | B57: NOTA1 | C57: 3026 | D57: 200175.6445 | E57: -1813.25191 | F57: 198362.3925 | G57: 1
A58: Otros Activos no de comunicaciones | B58: NOTA1 | C58: 3027 | D58: 36611.0489 | E58: 1730.626306 | F58: 38341.67521 | G58: 1
A59: Activos Intangibles | B59: NOTA1 | C59: 31 | D59: =+D60+D61+D62+D63+D64+D65 -> 2826830.216 | E59: =+E60+E61+E62+E63+E64+E65 -> -108488.6459 | F59: =+F60+F61+F62+F63+F64+F65 -> 2718341.57 | G59: 1
A60: Concesiones | B60: NOTA1 | C60: 311 | D60: 1468762.982 | E60: -5533.903495 | F60: 1463229.079 | G60: 1
A61: Licencias | B61: NOTA1 | C61: 312 | D61: 682588.5651 | E61: 16855.37297 | F61: 699443.938 | G61: 1
A62: Patentes y propiedad intelectual | B62: NOTA1 | C62: 313 | D62: 0 | E62: 0 | F62: 0 | G62: 1
A63: Software | B63: NOTA1 | C63: 314 | D63: 372878.3495 | E63: 7889.924212 | F63: 380768.2737 | G63: 1
A64: Investigación y Desarrollo | B64: NOTA1 | C64: 315 | D64: 0 | E64: 0 | F64: 0 | G64: 1
A65: Otros Activos Intangibles | B65: NOTA1 | C65: 316 | D65: 302600.3193 | E65: -127700.0396 | F65: 174900.2797 | G65: 1
A66: Otros Activos No Corrientes | B66: NOTA1 | C66: 32 | D66: 0 | E66: 0 | F66: 0 | G66: 1
A67: Depreciación del Activo Fijo Bruto, y Amortización | B67: NOTA1 | C67: 33 | D67: =+D68+D100+D107 -> -4129626.759 | E67: =+E68+E100+E107 -> -81168.30155 | F67: =+F68+F100+F107 -> -4210795.061 | G67: 1
A68: Depreciación de Planta y Equipo de Comunicaciones | B68: NOTA1 | C68: 341 | D68: =+D69+D77+D78+D87+D94 -> -2541054.76 | E68: =+E69+E77+E78+E87+E94 -> 40815.40069 | F68: =+F69+F77+F78+F87+F94 -> -2500239.359 | G68: 1
A69: Equipos terminales | B69: NOTA1 | C69: 3411 | D69: =D70+D71+D72+D73+D74+D75+D76 -> -1079716.287 | E69: =E70+E71+E72+E73+E74+E75+E76 -> 31791.03311 | F69: =F70+F71+F72+F73+F74+F75+F76 -> -1047925.254 | G69: 1
A70: Equipos terminales -Teléfonos de Abonados | B70: NOTA1 | C70: 34111 | D70: -61975.00357 | E70: 1909.315664 | F70: -60065.6879 | G70: 1
A71: Equipos terminales -Teléfonos Públicos | B71: NOTA1 | C71: 34112 | D71: -47901.62819 | E71: 1427.121003 | F71: -46474.50719 | G71: 1
A72: Equipos Terminales -Televisión de Paga | B72: NOTA1 | C72: 34113 | D72: -350262.4899 | E72: 10670.57897 | F72: -339591.9109 | G72: 1
A73: Equipos Terminales -Internet Fijo | B73: NOTA1 | C73: 34114 | D73: -593662.1154 | E73: 17494.2598 | F73: -576167.8556 | G73: 1
A74: Equipos Terminales -Telefonía Móvil | B74: NOTA1 | C74: 34115 | D74: -25915.05041 | E74: 289.75767 | F74: -25625.29274 | G74: 1
A75: Equipos Terminales -Internet Móvil | B75: NOTA1 | C75: 34116 | D75: 0 | E75: 0 | F75: 0 | G75: 1
A76: Otros Equipos Terminales | B76: NOTA1 | C76: 34117 | D76: 0 | E76: 0 | F76: 0 | G76: 1
A77: Planta y Equipo de Acceso Local | B77: NOTA1 | C77: 3412 | D77: -170353.5199 | E77: -15785.97945 | F77: -186139.4994 | G77: 1
A78: Equipos Centrales y de agregación | B78: NOTA1 | C78: 3413 | D78: =+D79+D80+D81+D82+D83+D84+D85+D86 -> -248584.525 | E78: =+E79+E80+E81+E82+E83+E84+E85+E86 -> 7326.917934 | F78: =+F79+F80+F81+F82+F83+F84+F85+F86 -> -241257.6071 | G78: 1
A79: Centrales Locales | B79: NOTA1 | C79: 34131 | D79: 0 | E79: 0 | F79: 0 | G79: 1
A80: Centrales de Larga Distancia Nacional | B80: NOTA1 | C80: 34132 | D80: -37989.99646 | E80: 1141.564075 | F80: -36848.43238 | G80: 1
A81: Centrales de Larga Distancia Internacional | B81: NOTA1 | C81: 34133 | D81: -432.1223331 | E81: 12.98487438 | F81: -419.1374587 | G81: 1
A82: Controladores | B82: NOTA1 | C82: 34134 | D82: -52502.99224 | E82: 1470.926143 | F82: -51032.06609 | G82: 1
A83: Gateways | B83: NOTA1 | C83: 34135 | D83: -2810.88562 | E83: 77.67370997 | F83: -2733.21191 | G83: 1
A84: Cabeceras | B84: NOTA1 | C84: 34136 | D84: -10780.62568 | E84: 268.7026609 | F84: -10511.92302 | G84: 1
A85: Transmisión de Datos (Servicio Final) | B85: NOTA1 | C85: 34137 | D85: -144067.9027 | E85: 4355.066471 | F85: -139712.8362 | G85: 1
A86: Otros equipos centrales | B86: NOTA1 | C86: 34138 | D86: 0 | E86: 0 | F86: 0 | G86: 1
A87: Transmisión (Gran capacidad) | B87: NOTA1 | C87: 3414 | D87: =+D88+D89+D90+D91+D92+D93 -> -555432.7627 | E87: =+E88+E89+E90+E91+E92+E93 -> 5216.275855 | F87: =+F88+F89+F90+F91+F92+F93 -> -550216.4868 | G87: 1
A88: Cables de Transmisión (excluidos internacional) | B88: NOTA1 | C88: 34141 | D88: -211653.4691 | E88: -3340.688974 | F88: -214994.1581 | G88: 1
A89: Equipos de Transmisión (excluidos internacional) | B89: NOTA1 | C89: 34142 | D89: -159948.3354 | E89: 4341.399153 | F89: -155606.9362 | G89: 1
A90: Equipos de Transmisión Radio | B90: NOTA1 | C90: 34143 | D90: -140506.7606 | E90: 3594.747335 | F90: -136912.0133 | G90: 1
A91: Equipos de Transmisión por Satélite | B91: NOTA1 | C91: 34144 | D91: -26110.00224 | E91: 761.7669424 | F91: -25348.2353 | G91: 1
A92: Cables y Equipos internacionales (excluyendo satélite) | B92: NOTA1 | C92: 34145 | D92: -1431.464078 | E92: 38.87258889 | F92: -1392.591489 | G92: 1
A93: Otros equipos de transmisión | B93: NOTA1 | C93: 34146 | D93: -15782.73133 | E93: -179.8211913 | F93: -15962.55253 | G93: 1
A94: Otros Activos Fijos Brutos de Comunicaciones | B94: NOTA1 | C94: 3415 | D94: =+D95+D96+D97+D98+D99 -> -486967.6646 | E94: =+E95+E96+E97+E98+E99 -> 12267.15324 | F94: =+F95+F96+F97+F98+F99 -> -474700.5114 | G94: 1
A95: Equipos de Fuerza (Planta Energía Eléctrica) | B95: NOTA1 | C95: 34151 | D95: -46372.4864 | E95: -2115.270895 | F95: -48487.75729 | G95: 1
A96: Sistemas de Gestión de Red | B96: NOTA1 | C96: 34152 | D96: -77854.73792 | E96: 1986.248006 | F96: -75868.48991 | G96: 1
A97: Equipos para Interconexión | B97: NOTA1 | C97: 34153 | D97: 0 | E97: 0 | F97: 0 | G97: 1
A98: Equipos para Circuitos Alquilados | B98: NOTA1 | C98: 34154 | D98: 0 | E98: 0 | F98: 0 | G98: 1
A99: Otros | B99: NOTA1 | C99: 34155 | D99: -362740.4403 | E99: 12396.17613 | F99: -350344.2641 | G99: 1
A100: Depreciación de Edificios, y Planta y Equipos no de Telecomunicaciones | B100: NOTA1 | C100: 342 | D100: =+D101+D102+D103+D104+D105+D106 -> -384385.8349 | E100: =+E101+E102+E103+E104+E105+E106 -> -132118.1048 | F100: =+F101+F102+F103+F104+F105+F106 -> -516503.9397 | G100: 1
A101: Edificios | B101: NOTA1 | C101: 3421 | D101: -258159.189 | E101: -126866.2463 | F101: -385025.4352 | G101: 1
A102: Vehículos y Ayudas Mecánicas | B102: NOTA1 | C102: 3422 | D102: -9243.35246 | E102: 27.67085 | F102: -9215.68161 | G102: 1
A103: Equipos Sistemas Informáticos | B103: NOTA1 | C103: 3423 | D103: -18157.54181 | E103: 252.0224467 | F103: -17905.51936 | G103: 1
A104: Edificios en arrendamiento financiero | B104: NOTA1 | C104: 3424 | D104: -49890.57919 | E104: -8611.879398 | F104: -58502.45858 | G104: 1
A105: Otros activos bajo la forma de arrendamiento o leasing | B105: NOTA1 | C105: 3425 | D105: -28376.69807 | E105: 3677.686658 | F105: -24699.01142 | G105: 1
A106: Otros Activos no de comunicaciones | B106: NOTA1 | C106: 3426 | D106: -20558.47436 | E106: -597.3591006 | F106: -21155.83346 | G106: 1
A107: Amortización de Intangibles | B107: NOTA1 | C107: 343 | D107: =+D108+D109+D110+D111+D112+D113 -> -1204186.165 | E107: =+E108+E109+E110+E111+E112+E113 -> 10134.40258 | F107: =+F108+F109+F110+F111+F112+F113 -> -1194051.762 | G107: 1
A108: Concesiones | B108: NOTA1 | C108: 3431 | D108: -481930.5257 | E108: 27387.8497 | F108: -454542.676 | G108: 1
A109: Licencias | B109: NOTA1 | C109: 3432 | D109: -568390.2083 | E109: -14035.62342 | F109: -582425.8317 | G109: 1
A110: Patentes y propiedad intelectual | B110: NOTA1 | C110: 3433 | D110: 0 | E110: 0 | F110: 0 | G110: 1
A111: Software | B111: NOTA1 | C111: 3434 | D111: -89058.04515 | E111: -1598.102431 | F111: -90656.14758 | G111: 1
A112: Investigación y Desarrollo | B112: NOTA1 | C112: 3435 | D112: 0 | E112: 0 | F112: 0 | G112: 1
A113: Otros Activos Intangibles | B113: NOTA1 | C113: 3436 | D113: -64807.3858 | E113: -1619.721279 | F113: -66427.10708 | G113: 1
A114: Otras cuentas por cobrar a largo plazo | B114: 18 | C114: 18 | D114: 32089.03587 | E114: 0 | F114: 32089.03587
A115: Activo por impuesto a las ganancias diferido, neto | B115: 49 | C115: 49 | D115: 0 | E115: 0 | F115: 0
A116: Cuentas por cobrar a terceros a largo plazo | B116: 12 | C116: 12 | D116: 28392.85516 | E116: 0 | F116: 28392.85516
A117: PASIVO CORRIENTE | D117: =+D118+D119+D120+D121+D122+D123 -> -3279921.114 | E117: =+E118+E119+E120+E121+E122+E123 -> 133.339 | F117: =+F118+F119+F120+F121+F122+F123 -> -3279787.775
A118: Cuentas por pagar comerciales | B118: 42 | C118: 42 | D118: -1118093.159 | E118: 0 | F118: -1118093.159
A119: Cuentas por pagar a la principal y vinculadas | B119: 43 | C119: 43 | D119: -358700.084 | E119: 0 | F119: -358700.084
A120: Obligaciones financieras | B120: 45 | C120: 45 | D120: -1340150.869 | E120: 0 | F120: -1340150.869
A121: Otras cuentas por pagar | B121: 46 | C121: 46 | D121: -220473.9507 | E121: 133.339 | F121: -220340.6117
A122: Pasivos por contratos | B122: 491 | C122: 491 | D122: -173100.925 | E122: 0 | F122: -173100.925
A123: Otros pasivos financieros | B123: 42 | C123: 42 | D123: -69402.12671 | E123: 0 | F123: -69402.12671
A124: PASIVO NO CORRIENTE | D124: =+D125+D126+D128+D127 -> -1100833.957 | E124: =+E125+E126+E128+E127 -> 0 | F124: =+F125+F126+F128+F127 -> -1100833.957
A125: Ingresos Diferidos | B125: 491 | C125: 491 | D125: -93185.68056 | E125: 0 | F125: -93185.68056
A126: Provisión de desmantelamiento de equipos | B126: 461 | C126: 461 | D126: -93442.723 | E126: 0 | F126: -93442.723
A127: Pasivo por Impuesto a la Renta | B127: 491 | C127: 491 | D127: -45105.71646 | E127: 0 | F127: -45105.71646
A128: Cuentas por pagar a la principal y vinculadas a largo plazo | B128: 471 | C128: 471 | D128: -869099.8371 | E128: 0 | F128: -869099.8371
A129: PATRIMONIO NETO | D129: =+D130+D131+D132+D133+D134+D135 -> -4874495.928 | E129: =+E130+E131+E132+E133+E134+E135 -> 2990539.519 | F129: =+F130+F131+F132+F133+F134+F135 -> -1883956.409
A130: Capital Social | B130: 50 | C130: 50 | D130: -2030882.602 | E130: 0 | F130: -2030882.602
A131: Descuento Capital | B131: 52 | C131: 52 | D131: -403.5835 | E131: 0 | F131: -403.5835
A132: Reserva Legal | B132: 58 | C132: 58 | D132: -406176.5204 | E132: 0 | F132: -406176.5204
A133: Otras Reservas | B133: 581 | C133: 581 | D133: -2801090.467 | E133: 0 | F133: -2801090.467
A134: Resultados por traslación | B134: 59 | C134: 59 | D134: 210492.6006 | E134: 0 | F134: 210492.6006
A135: Resultados Acumulados | B135: 591 | C135: 591 | D135: 153564.6449 | E135: 2990539.519 | F135: 3144104.164
